bitfinex-derivatives/quotes_BTCF0:USTF0_20230702
["timestamp","ask_amount","ask_price","bid_price","bid_amount"]
[1688330166134,0.02947682,30602.0,30601.0,0.64633469]
[1688330173630,0.11397478,30602.0,30601.0,0.64633469]
[1688330180139,0.11397478,30602.0,30601.0,0.62672969]
[1688330181132,0.02947682,30602.0,30601.0,0.62672969]
[1688330181332,0.02947682,30602.0,30601.0,0.64633469]
[1688330182846,0.00987182,30602.0,30601.0,0.64633469]
[1688330186847,0.02947682,30602.0,30601.0,0.64633469]
[1688330196157,0.11397119,30602.0,30601.0,0.64633469]
[1688330198377,0.09436619,30602.0,30601.0,0.64633469]
[1688330199169,0.00987182,30602.0,30601.0,0.64633469]
[1688330199572,0.074816,30604.0,30601.0,0.64633469]
[1688330199756,0.0099734,30602.0,30601.0,0.380405]
[1688330199959,0.074816,30604.0,30601.0,0.628105]
[1688330200169,0.08449404,30603.0,30601.0,0.380405]
[1688330200471,0.00997343,30603.0,30602.0,0.26642969]
[1688330200673,0.0944678,30603.0,30602.0,0.59403469]
[1688330203566,0.00997343,30603.0,30602.0,0.59403469]
[1688330205763,0.02957743,30603.0,30602.0,0.59403469]
[1688330207072,0.00997343,30603.0,30602.0,0.95483469]
[1688330211481,0.09446737,30603.0,30602.0,0.95483469]
[1688330215083,0.00997343,30603.0,30602.0,0.95483469]
[1688330216182,0.00997343,30603.0,30602.0,1.31563469]
[1688330220883,0.016,30604.0,30602.0,1.31563469]
[1688330221090,0.016,30604.0,30603.0,0.28603369]
[1688330223179,0.01,30606.0,30605.0,0.0065]
[1688330223386,0.019601,30608.0,30606.0,0.26642969]
[1688330223577,0.019601,30608.0,30607.0,0.2482]
[1688330224081,0.07399651,30608.0,30607.0,0.2482]
[1688330224281,0.09284596,30608.0,30607.0,0.2482]
[1688330225377,0.03845045,30608.0,30607.0,0.26642969]
[1688330225579,0.019601,30608.0,30607.0,0.26642969]
[1688330225787,0.11319651,30610.0,30607.0,0.28603169]
[1688330225991,0.11319651,30610.0,30609.0,0.2482]
[1688330226285,0.14328391,30610.0,30609.0,0.609]
[1688330226497,0.16228391,30610.0,30609.0,0.609]
[1688330226885,0.17328391,30610.0,30609.0,0.609]
[1688330227185,0.19213336,30610.0,30609.0,0.609]
[1688330227387,0.22936305,30610.0,30609.0,0.609]
[1688330227582,0.21113336,30610.0,30609.0,0.609]
[1688330228488,0.21113336,30610.0,30609.0,0.2482]
[1688330232702,0.22561651,30610.0,30609.0,0.2482]
[1688330233798,0.46749273,30610.0,30609.0,0.2482]
[1688330234997,0.15936329,30610.0,30609.0,0.2482]
[1688330235700,0.48569174,30610.0,30609.0,0.2482]
[1688330236798,0.15936329,30610.0,30609.0,0.2482]
[1688330237490,0.15936329,30610.0,30609.0,0.13940898]
[1688330237491,0.24384821,30610.0,30609.0,0.13940898]
[1688330237698,0.03707914,30609.0,30606.0,0.40653551]
[1688330237899,0.019601,30608.0,30606.0,0.40653551]
[1688330238193,0.03408403,30608.0,30607.0,0.2482]
[1688330238698,0.05293348,30608.0,30607.0,0.2482]
[1688330239292,0.07116317,30608.0,30607.0,0.2482]
[1688330242505,0.07766317,30608.0,30607.0,0.2482]
[1688330244002,0.07116317,30608.0,30607.0,0.2482]
[1688330245710,0.07116317,30608.0,30607.0,0.267802]
[1688330248703,0.07116317,30608.0,30607.0,0.2482]
[1688330249004,0.15564865,30608.0,30607.0,0.2482]
[1688330249207,0.13741896,30608.0,30607.0,0.2482]
[1688330250006,0.15564865,30608.0,30607.0,0.2482]
[1688330251708,0.15564865,30608.0,30607.0,0.267802]
[1688330252200,0.13741896,30608.0,30607.0,0.267802]
[1688330252501,0.11856951,30608.0,30607.0,0.267802]
[1688330252701,0.09896851,30608.0,30607.0,0.267802]
[1688330253703,0.09896851,30608.0,30607.0,0.28603169]
[1688330254307,0.11856951,30608.0,30607.0,0.28603169]
[1688330254697,0.3409277,30608.0,30607.0,0.28603169]
[1688330255003,0.3409277,30608.0,30607.0,0.267802]
[1688330255210,0.44426263,30608.0,30607.0,0.267802]
[1688330255507,0.11781796,30608.0,30607.0,0.267802]
[1688330256306,0.03333248,30608.0,30607.0,0.267802]
[1688330257503,0.03333248,30608.0,30607.0,0.28603169]
[1688330257810,0.03333248,30608.0,30607.0,0.267802]
[1688330258810,0.01448303,30608.0,30607.0,0.28603169]
[1688330260305,0.01448303,30608.0,30607.0,0.64683169]
[1688330263916,0.098964,30608.0,30607.0,0.64683169]
[1688330265918,0.118565,30608.0,30607.0,0.64683169]
[1688330269216,0.098964,30608.0,30607.0,0.64683169]
[1688330271320,0.01448303,30608.0,30607.0,0.64683169]
[1688330271825,0.03408403,30608.0,30607.0,0.64683169]
[1688330273729,0.03408403,30608.0,30607.0,0.628602]
[1688330275720,0.03408403,30608.0,30607.0,0.64683169]
[1688330276117,0.03408403,30608.0,30607.0,0.628602]
[1688330277034,0.03408403,30608.0,30607.0,0.64683169]
[1688330277227,0.03408403,30608.0,30607.0,0.628602]
[1688330277725,0.03408403,30608.0,30607.0,0.64683169]
[1688330277928,0.03408403,30608.0,30607.0,0.628602]
[1688330278516,0.05293348,30608.0,30607.0,0.628602]
[1688330281820,0.05293348,30608.0,30607.0,0.609]
[1688330282029,0.37974652,30608.0,30607.0,0.609]
[1688330282334,0.37974652,30608.0,30607.0,0.64683169]
[1688330282831,0.37974652,30608.0,30607.0,0.628602]
[1688330283730,0.36089707,30608.0,30607.0,0.628602]
[1688330284128,0.36089707,30608.0,30607.0,0.64683169]
[1688330284335,0.36089707,30608.0,30607.0,0.628602]
[1688330284634,0.36089707,30608.0,30607.0,0.64683169]
[1688330286321,0.03408403,30608.0,30607.0,0.64683169]
[1688330286526,0.11856605,30608.0,30607.0,0.64683169]
[1688330286730,0.09896505,30608.0,30607.0,0.64683169]
[1688330288828,0.11856605,30608.0,30607.0,0.64683169]
[1688330290838,0.11856605,30608.0,30607.0,0.628602]
[1688330291023,0.11856605,30608.0,30607.0,0.64683169]
[1688330292224,0.11856605,30608.0,30607.0,0.628602]
[1688330292743,0.11856605,30608.0,30607.0,0.64683169]
[1688330293329,0.11856605,30608.0,30607.0,0.628602]
[1688330293930,0.36092702,30608.0,30607.0,0.628602]
[1688330294425,0.36092702,30608.0,30607.0,0.64683169]
[1688330294837,0.36092702,30608.0,30607.0,0.628602]
[1688330295537,0.37977647,30608.0,30607.0,0.628602]
[1688330295736,0.36017547,30608.0,30607.0,0.628602]
[1688330296133,0.36017547,30608.0,30607.0,0.64683169]
[1688330296327,0.37977647,30608.0,30607.0,0.628602]
[1688330297729,0.36092702,30608.0,30607.0,0.628602]
[1688330297944,0.37977647,30608.0,30607.0,0.628602]
[1688330298642,0.37977647,30608.0,30607.0,0.64683169]
[1688330299034,0.37977647,30608.0,30607.0,0.628602]
[1688330301339,0.13741534,30608.0,30607.0,0.267802]
[1688330301537,0.13741534,30608.0,30607.0,0.628602]
[1688330304637,0.11856589,30608.0,30607.0,0.628602]
[1688330304844,0.09896489,30608.0,30607.0,0.628602]
[1688330305346,0.11781434,30608.0,30607.0,0.628602]
[1688330305945,0.13741534,30608.0,30607.0,0.628602]
[1688330308042,0.13741534,30608.0,30607.0,0.609]
[1688330308639,0.13741534,30608.0,30607.0,0.2482]
[1688330308948,0.13741534,30608.0,30607.0,0.609]
[1688330308949,0.37983151,30608.0,30607.0,0.609]
[1688330309844,0.36023051,30608.0,30607.0,0.628602]
[1688330310148,0.37983151,30608.0,30607.0,0.628602]
[1688330310848,0.36023051,30608.0,30607.0,0.628602]
[1688330311750,0.37983151,30608.0,30607.0,0.628602]
[1688330313543,0.37983151,30608.0,30607.0,0.267802]
[1688330313848,0.37983151,30608.0,30607.0,0.628602]
[1688330314049,0.3980612,30608.0,30607.0,0.628602]
[1688330314248,0.37983151,30608.0,30607.0,0.628602]
[1688330315748,0.36023051,30608.0,30607.0,0.628602]
[1688330316335,0.46294327,30608.0,30607.0,0.628602]
[1688330316534,0.13604524,30608.0,30607.0,0.628602]
[1688330316741,0.15564624,30608.0,30607.0,0.628602]
[1688330317038,0.1185671,30608.0,30607.0,0.628602]
[1688330317234,0.1185671,30608.0,30607.0,0.267802]
[1688330317438,0.1185671,30608.0,30607.0,0.628602]
[1688330317635,0.1185671,30608.0,30607.0,0.267802]
[1688330317840,0.1185671,30608.0,30607.0,0.628602]
[1688330318241,0.1185671,30608.0,30607.0,0.267802]
[1688330318440,0.1185671,30608.0,30607.0,0.628602]
[1688330318940,0.1185671,30608.0,30607.0,0.64683169]
[1688330319141,0.0989661,30608.0,30607.0,0.64683169]
[1688330323744,0.11781555,30608.0,30607.0,0.628602]
[1688330324057,0.36022647,30608.0,30607.0,0.628602]
[1688330325345,0.37982747,30608.0,30607.0,0.628602]
[1688330328548,0.39805716,30608.0,30607.0,0.628602]
[1688330328755,0.37982747,30608.0,30607.0,0.628602]
[1688330329561,0.39805716,30608.0,30607.0,0.628602]
[1688330330055,0.37982747,30608.0,30607.0,0.628602]
[1688330331152,0.37982747,30608.0,30607.0,0.609]
[1688330331353,0.39805716,30608.0,30607.0,0.609]
[1688330331751,0.37982747,30608.0,30607.0,0.609]
[1688330332752,0.36022647,30608.0,30607.0,0.628602]
[1688330336756,0.36022647,30608.0,30607.0,0.64683169]
[1688330337259,0.37845616,30608.0,30607.0,0.628602]
[1688330338161,0.36022647,30608.0,30607.0,0.628602]
[1688330338965,0.11781404,30608.0,30607.0,0.628602]
[1688330340558,0.09896459,30608.0,30607.0,0.64683169]
[1688330341859,0.09896459,30608.0,30607.0,0.628602]
[1688330342451,0.09896459,30608.0,30607.0,0.64683169]
[1688330343457,0.09896459,30608.0,30607.0,0.628602]
[1688330345463,0.09896459,30608.0,30607.0,0.942102]
[1688330346471,0.34136725,30608.0,30607.0,0.942102]
[1688330346664,0.34136725,30608.0,30607.0,0.96033169]
[1688330346873,0.32688422,30609.0,30607.0,0.96033169]
[1688330347170,0.32688422,30609.0,30608.0,0.26492969]
[1688330347471,0.32688422,30609.0,30608.0,0.28453069]
[1688330348071,0.35688422,30609.0,30608.0,0.28453069]
[1688330348266,0.35688422,30609.0,30608.0,0.266301]
[1688330348470,0.70686411,30609.0,30608.0,0.267801]
[1688330348861,0.76294325,30609.0,30608.0,0.267801]
[1688330349155,0.43605903,30609.0,30608.0,0.267801]
[1688330349565,0.76293012,30609.0,30608.0,0.267801]
[1688330353973,0.43605903,30609.0,30608.0,0.267801]
[1688330354268,0.41782934,30609.0,30608.0,0.267801]
[1688330354572,0.42881755,30609.0,30608.0,0.267801]
[1688330354771,0.40921755,30609.0,30608.0,0.267801]
[1688330355466,0.3903681,30609.0,30608.0,0.267801]
[1688330356869,0.1444681,30609.0,30608.0,0.267801]
[1688330357574,0.1444681,30609.0,30608.0,0.28603069]
[1688330358875,0.1444681,30609.0,30608.0,0.267801]
[1688330359570,0.1444681,30609.0,30608.0,0.28603069]
[1688330360476,0.1444681,30609.0,30608.0,0.267801]
[1688330361372,0.38680638,30609.0,30608.0,0.267801]
[1688330363373,0.42388552,30609.0,30608.0,0.267801]
[1688330363978,0.40565583,30609.0,30608.0,0.267801]
[1688330364677,0.38680638,30609.0,30608.0,0.267801]
[1688330366178,0.40565583,30609.0,30608.0,0.267801]
[1688330366784,0.38680638,30609.0,30608.0,0.267801]
[1688330367281,0.40503607,30609.0,30608.0,0.267801]
[1688330367779,0.44348552,30609.0,30608.0,0.267801]
[1688330368169,0.69058552,30609.0,30607.0,0.9211]
[1688330368376,0.28527914,30608.0,30607.0,0.9211]
[1688330368574,0.31586816,30608.0,30607.0,0.9211]
[1688330369381,0.32236816,30608.0,30607.0,0.2468]
[1688330369585,0.0065,30605.0,30603.0,0.00049009]
[1688330369882,0.30824687,30604.0,30603.0,0.00049009]
[1688330371277,0.31474687,30604.0,30603.0,0.00049009]
[1688330375273,0.31474687,30604.0,30603.0,0.02009409]
[1688330375881,0.30824687,30604.0,30603.0,0.02009409]
[1688330376479,0.30824687,30604.0,30603.0,0.00049009]
[1688330380589,0.30824687,30604.0,30603.0,0.02009409]
[1688330387096,0.30824687,30604.0,30603.0,0.00049009]
[1688330390203,0.30824687,30604.0,30603.0,0.02009409]
[1688330394200,0.27041318,30604.0,30603.0,0.02009409]
[1688330394504,0.00546373,30604.0,30603.0,0.26829409]
[1688330394704,0.00546373,30604.0,30603.0,0.28652378]
[1688330395294,0.02506673,30604.0,30603.0,0.26829409]
[1688330395805,0.04391618,30604.0,30603.0,0.26829409]
[1688330397209,0.04391618,30604.0,30603.0,0.62909409]
[1688330399598,0.04391618,30604.0,30603.0,0.64732378]
[1688330399900,0.04391618,30604.0,30603.0,0.62909409]
[1688330401199,0.04391618,30604.0,30603.0,0.64732378]
[1688330401402,0.02506673,30604.0,30603.0,0.64732378]
[1688330402607,0.27206673,30604.0,30603.0,0.64732378]
[1688330402995,0.27206673,30604.0,30603.0,0.62909409]
[1688330403705,0.27206673,30604.0,30603.0,0.64732378]
[1688330406005,0.2749986,30604.0,30603.0,0.64732378]
[1688330409804,0.2749986,30604.0,30603.0,0.28652378]
[1688330410107,0.2749986,30604.0,30603.0,0.64732378]
[1688330412708,0.0279986,30604.0,30603.0,0.64732378]
[1688330422912,0.0279986,30604.0,30603.0,0.62909409]
[1688330423809,0.0279986,30604.0,30603.0,0.64732378]
[1688330424615,0.0279986,30604.0,30603.0,0.28652378]
[1688330424816,0.0279986,30604.0,30603.0,0.64732378]
[1688330427812,0.0279986,30604.0,30603.0,0.28652378]
[1688330428018,0.0279986,30604.0,30603.0,0.64732378]
[1688330428918,0.11248727,30604.0,30603.0,0.64732378]
[1688330435928,0.11248727,30604.0,30603.0,0.62909409]
[1688330436226,0.11248727,30604.0,30603.0,0.64732378]
[1688330436423,0.0279986,30604.0,30603.0,0.64732378]
[1688330437318,0.0279986,30604.0,30603.0,0.62909409]
[1688330437515,0.0279986,30604.0,30603.0,0.64732378]
[1688330438823,0.0083956,30604.0,30603.0,0.64732378]
[1688330442430,0.00474048,30604.0,30603.0,0.64732378]
[1688330442930,0.2482,30606.0,30603.0,0.64732378]
[1688330443234,0.2482,30606.0,30605.0,0.627102]
[1688330443427,0.33268821,30606.0,30605.0,0.627102]
[1688330444133,0.33268821,30606.0,30605.0,0.951502]
[1688330444325,0.35229021,30606.0,30605.0,0.951502]
[1688330445732,0.35229021,30606.0,30605.0,0.96973169]
[1688330446327,0.35704994,30606.0,30605.0,0.96973169]
[1688330448937,0.35704994,30606.0,30605.0,0.60893169]
[1688330449138,0.35704994,30606.0,30605.0,0.951502]
[1688330449840,0.35704994,30606.0,30605.0,0.590702]
[1688330450231,0.35704994,30606.0,30605.0,0.951502]
[1688330452034,0.35704994,30606.0,30605.0,0.96973169]
[1688330452231,0.35704994,30606.0,30605.0,0.951502]
[1688330452638,0.35704994,30606.0,30605.0,0.96973169]
[1688330454333,0.27256173,30606.0,30605.0,0.96973169]
[1688330455242,0.27256173,30606.0,30605.0,0.99546437]
[1688330456839,0.25295973,30606.0,30605.0,0.99546437]
[1688330457046,0.57987423,30606.0,30605.0,0.99546437]
[1688330457643,0.33167423,30606.0,30605.0,0.99546437]
[1688330457836,0.00475973,30606.0,30605.0,0.96973169]
[1688330458937,0.08924322,30606.0,30605.0,0.96973169]
[1688330463845,0.33154386,30606.0,30605.0,0.96973169]
[1688330464644,0.41602566,30606.0,30605.0,0.96973169]
[1688330465241,0.33154386,30606.0,30605.0,0.96973169]
[1688330466544,0.00475973,30606.0,30605.0,0.96973169]
[1688330466748,0.34638513,30608.0,30605.0,0.96973169]
[1688330467064,0.34638513,30608.0,30607.0,0.267802]
[1688330467241,0.34638513,30608.0,30607.0,0.28603169]
[1688330467443,0.019601,30608.0,30607.0,0.28603169]
[1688330470153,0.019601,30608.0,30607.0,0.64683169]
[1688330472154,0.019601,30608.0,30607.0,0.28603169]
[1688330472362,0.019601,30608.0,30607.0,0.64683169]
[1688330472664,0.40248924,30609.0,30607.0,0.628602]
[1688330472966,0.40248924,30609.0,30608.0,0.2482]
[1688330473359,0.43248924,30609.0,30608.0,0.2482]
[1688330473558,0.45148924,30609.0,30608.0,0.2482]
[1688330473863,0.45148924,30609.0,30608.0,0.267801]
[1688330473864,0.10570511,30609.0,30608.0,0.267801]
[1688330474064,0.16018743,30609.0,30608.0,0.267801]
[1688330474472,0.20918743,30609.0,30608.0,0.28603069]
[1688330474964,0.20918743,30609.0,30608.0,0.598101]
[1688330475172,0.20918743,30609.0,30608.0,0.61633069]
[1688330475375,0.20918743,30609.0,30608.0,0.598101]
[1688330475669,0.20918743,30609.0,30608.0,0.61633069]
[1688330476368,0.21394588,30609.0,30608.0,0.61633069]
[1688330476572,0.21394588,30609.0,30608.0,0.598101]
[1688330476761,0.21394588,30609.0,30608.0,0.61633069]
[1688330477067,0.21394588,30609.0,30608.0,0.598101]
[1688330477267,0.21394588,30609.0,30608.0,0.958901]
[1688330477872,0.21394588,30609.0,30608.0,0.97713069]
[1688330478373,0.12946356,30609.0,30608.0,0.97713069]
[1688330479563,0.08046256,30609.0,30608.0,0.97713069]
[1688330480264,0.32866256,30609.0,30608.0,0.97713069]
[1688330481469,0.65529105,30609.0,30608.0,0.97713069]
[1688330481773,0.32866256,30609.0,30608.0,0.97713069]
[1688330482471,0.32866256,30609.0,30608.0,0.72893069]
[1688330482677,0.32866256,30609.0,30608.0,0.36813069]
[1688330482871,0.32866256,30609.0,30608.0,0.72893069]
[1688330484673,0.32866256,30609.0,30608.0,0.75524892]
[1688330488572,0.34826256,30609.0,30608.0,0.72893069]
[1688330490079,0.34751201,30609.0,30608.0,0.710701]
[1688330490473,0.36711201,30609.0,30608.0,0.710701]
[1688330490668,0.36711201,30609.0,30608.0,0.72893069]
[1688330490873,0.34826256,30609.0,30608.0,0.72893069]
[1688330492269,0.34826256,30609.0,30608.0,0.710701]
[1688330492483,0.34826256,30609.0,30608.0,0.958901]
[1688330492968,0.32866256,30609.0,30608.0,0.958901]
[1688330493175,0.32866256,30609.0,30608.0,0.97713069]
[1688330496477,0.34826256,30609.0,30608.0,0.97713069]
[1688330496681,0.43274394,30609.0,30608.0,0.958901]
[1688330497182,0.43274394,30609.0,30608.0,0.97713069]
[1688330497382,0.34826256,30609.0,30608.0,0.97713069]
[1688330497778,0.34826256,30609.0,30608.0,0.958901]
[1688330498079,0.36711201,30609.0,30608.0,0.958901]
[1688330498280,0.3853417,30609.0,30608.0,0.958901]
[1688330498581,0.36711201,30609.0,30608.0,0.958901]
[1688330498776,0.36711201,30609.0,30608.0,0.710701]
[1688330499983,0.36711201,30609.0,30608.0,0.349901]
[1688330500184,0.34826256,30609.0,30608.0,0.349901]
[1688330502284,0.36711201,30609.0,30608.0,0.349901]
[1688330503391,0.34826256,30609.0,30608.0,0.349901]
[1688330504585,0.34826256,30609.0,30608.0,0.36813069]
[1688330504984,0.32687221,30609.0,30608.0,0.36813069]
[1688330505183,0.01,30611.0,30609.0,0.01822969]
[1688330505380,0.01,30611.0,30610.0,0.6279]
[1688330506095,0.019,30611.0,30610.0,0.6279]
[1688330506289,0.02347924,30611.0,30610.0,0.64612969]
[1688330506790,0.01447924,30611.0,30610.0,0.64612969]
[1688330506985,0.02347924,30611.0,30610.0,0.64612969]
[1688330510396,0.02590383,30611.0,30610.0,0.64612969]
[1688330512589,0.27180383,30611.0,30610.0,0.64612969]
[1688330518001,0.27180383,30611.0,30610.0,0.6717685]
[1688330519104,0.35627652,30611.0,30610.0,0.6717685]
[1688330519990,0.27180383,30611.0,30610.0,0.6717685]
[1688330520392,0.27300383,30611.0,30610.0,0.6717685]
[1688330522600,0.27300383,30611.0,30610.0,0.3109685]
[1688330522801,0.27300383,30611.0,30610.0,0.6717685]
[1688330532514,0.02590383,30611.0,30610.0,0.6717685]
[1688330539520,0.11037593,30611.0,30610.0,0.6717685]
[1688330539715,0.11037587,30611.0,30610.0,0.6717685]
[1688330539916,0.02590383,30611.0,30610.0,0.6717685]
[1688330541318,0.11037583,30611.0,30610.0,0.6717685]
[1688330541714,0.02590383,30611.0,30610.0,0.6717685]
[1688330549823,0.11037494,30611.0,30610.0,0.6717685]
[1688330550420,0.02590383,30611.0,30610.0,0.6717685]
[1688330551128,0.1103754,30611.0,30610.0,0.6717685]
[1688330551530,0.02590383,30611.0,30610.0,0.6717685]
[1688330551728,0.1103751,30611.0,30610.0,0.6717685]
[1688330552628,0.02590383,30611.0,30610.0,0.6717685]
[1688330552817,0.11037523,30611.0,30610.0,0.6717685]
[1688330553729,0.02590383,30611.0,30610.0,0.6717685]
[1688330553925,0.11037527,30611.0,30610.0,0.6717685]
[1688330554833,0.02590383,30611.0,30610.0,0.6717685]
[1688330555026,0.11037528,30611.0,30610.0,0.6717685]
[1688330555935,0.02590383,30611.0,30610.0,0.6717685]
[1688330556123,0.11037546,30611.0,30610.0,0.6717685]
[1688330556732,0.02590383,30611.0,30610.0,0.6717685]
[1688330564434,0.11037365,30611.0,30610.0,0.6717685]
[1688330565036,0.02590383,30611.0,30610.0,0.6717685]
[1688330565233,0.11037372,30611.0,30610.0,0.6717685]
[1688330566031,0.04550283,30611.0,30610.0,0.6717685]
[1688330566231,0.12997324,30611.0,30610.0,0.63393881]
[1688330566447,0.37697324,30611.0,30610.0,0.3608]
[1688330566640,0.43786875,30611.0,30610.0,0.3608]
[1688330566845,0.47494789,30611.0,30610.0,0.3608]
[1688330567245,0.39047748,30611.0,30610.0,0.3608]
[1688330568138,0.33608197,30611.0,30610.0,0.3608]
[1688330569143,0.33608197,30611.0,30610.0,0.3804]
[1688330572749,0.31785228,30611.0,30610.0,0.3804]
[1688330573252,0.33608197,30611.0,30610.0,0.3804]
[1688330573646,0.31785228,30611.0,30610.0,0.3804]
[1688330573846,0.31135228,30611.0,30610.0,0.3804]
[1688330574043,0.32958197,30611.0,30610.0,0.3804]
[1688330575745,0.32958197,30611.0,30610.0,0.3608]
[1688330579950,0.32958197,30611.0,30610.0,0.3804]
[1688330582157,0.31135228,30611.0,30610.0,0.3804]
[1688330582746,0.31135228,30611.0,30610.0,0.4059473]
[1688330582948,0.32958197,30611.0,30610.0,0.4059473]
[1688330583147,0.31135228,30611.0,30610.0,0.4059473]
[1688330583558,0.32958197,30611.0,30610.0,0.4059473]
[1688330584153,0.31135228,30611.0,30610.0,0.4059473]
[1688330584457,0.29250283,30611.0,30610.0,0.4059473]
[1688330585958,0.29250283,30611.0,30610.0,0.0451473]
[1688330586661,0.37697962,30611.0,30610.0,0.0451473]
[1688330586960,0.41405876,30611.0,30610.0,0.0451473]
[1688330587552,0.32958197,30611.0,30610.0,0.0451473]
[1688330592457,0.31135228,30611.0,30610.0,0.0451473]
[1688330592859,0.32958197,30611.0,30610.0,0.0451473]
[1688330594666,0.31135228,30611.0,30610.0,0.0451473]
[1688330596572,0.32958197,30611.0,30610.0,0.0451473]
[1688330596874,0.31135228,30611.0,30610.0,0.0451473]
[1688330597170,0.32958197,30611.0,30610.0,0.0451473]
[1688330597365,0.31135228,30611.0,30610.0,0.0451473]
[1688330597764,0.29250283,30611.0,30610.0,0.0451473]
[1688330600460,0.31135228,30611.0,30610.0,0.0451473]
[1688330601276,0.32958197,30611.0,30610.0,0.0451473]
[1688330601571,0.31135228,30611.0,30610.0,0.0451473]
[1688330601770,0.32958197,30611.0,30610.0,0.0451473]
[1688330601977,0.31135228,30611.0,30610.0,0.0451473]
[1688330603374,0.29250283,30611.0,30610.0,0.0451473]
[1688330604071,0.27290383,30611.0,30610.0,0.0451473]
[1688330604275,0.27290383,30611.0,30610.0,0.06337699]
[1688330604877,0.27290383,30611.0,30610.0,0.03782969]
[1688330606276,0.27290383,30611.0,30610.0,0.39862969]
[1688330609287,0.35737734,30611.0,30610.0,0.03782969]
[1688330609486,0.35737734,30611.0,30610.0,0.39862969]
[1688330610086,0.27290383,30611.0,30610.0,0.39862969]
[1688330617893,0.27290383,30611.0,30610.0,0.3804]
[1688330618600,0.29175328,30611.0,30610.0,0.3804]
[1688330619097,0.29175328,30611.0,30610.0,0.39862969]
[1688330619297,0.27290383,30611.0,30610.0,0.39862969]
[1688330619497,0.27290383,30611.0,30610.0,0.3804]
[1688330620901,0.41405666,30611.0,30610.0,0.3804]
[1688330621494,0.32958197,30611.0,30610.0,0.3804]
[1688330622103,0.31135228,30611.0,30610.0,0.3804]
[1688330624102,0.31135228,30611.0,30610.0,0.0196]
[1688330624304,0.30235228,30611.0,30610.0,0.0196]
[1688330625896,0.28275328,30611.0,30610.0,0.0196]
[1688330626293,0.26390383,30611.0,30610.0,0.0196]
[1688330628911,0.26390383,30611.0,30610.0,0.03782969]
[1688330629597,0.26390383,30611.0,30610.0,0.0196]
[1688330630101,0.26390383,30611.0,30610.0,0.03782969]
[1688330632205,0.26390383,30611.0,30610.0,0.0196]
[1688330632398,0.26390383,30611.0,30610.0,0.03782969]
[1688330632599,0.26390383,30611.0,30610.0,0.0196]
[1688330633204,0.26390383,30611.0,30610.0,0.03782969]
[1688330633803,0.26390383,30611.0,30610.0,0.39862969]
[1688330634603,0.26390383,30611.0,30610.0,0.3804]
[1688330635214,0.26390383,30611.0,30610.0,0.39862969]
[1688330637713,0.26390383,30611.0,30610.0,0.3804]
[1688330638811,0.26390383,30611.0,30610.0,0.39862969]
[1688330639217,0.34837728,30611.0,30610.0,0.39862969]
[1688330640515,0.26390383,30611.0,30610.0,0.39862969]
[1688330641317,0.28275328,30611.0,30610.0,0.3804]
[1688330644411,0.26390383,30611.0,30610.0,0.39862969]
[1688330645419,0.26390383,30611.0,30610.0,0.3804]
[1688330645610,0.26390383,30611.0,30610.0,0.39862969]
[1688330645811,0.26390383,30611.0,30610.0,0.3804]
[1688330646219,0.26390383,30611.0,30610.0,0.39862969]
[1688330648008,0.26390383,30611.0,30610.0,0.3804]
[1688330649613,0.26390383,30611.0,30610.0,0.39862969]
[1688330649814,0.26390383,30611.0,30610.0,0.3804]
[1688330651433,0.26390383,30611.0,30610.0,0.39862969]
[1688330651621,0.26390383,30611.0,30610.0,0.3804]
[1688330653422,0.26390383,30611.0,30610.0,0.39862969]
[1688330653621,0.26390383,30611.0,30610.0,0.0196]
[1688330653831,0.26390383,30611.0,30610.0,0.3804]
[1688330654324,0.34837707,30611.0,30610.0,0.3804]
[1688330654820,0.34837707,30611.0,30610.0,0.39862969]
[1688330655126,0.26390383,30611.0,30610.0,0.3804]
[1688330655622,0.26390383,30611.0,30610.0,0.39862969]
[1688330656014,0.26390383,30611.0,30610.0,0.3804]
[1688330656210,0.26390383,30611.0,30610.0,0.39862969]
[1688330656922,0.26390383,30611.0,30610.0,0.3804]
[1688330657120,0.26390383,30611.0,30610.0,0.39862969]
[1688330657426,0.26390383,30611.0,30610.0,0.3804]
[1688330658011,0.28275328,30611.0,30610.0,0.3804]
[1688330659032,0.28275328,30611.0,30610.0,0.4094]
[1688330659419,0.28275328,30611.0,30610.0,0.42762969]
[1688330659620,0.26390383,30611.0,30610.0,0.42762969]
[1688330660129,0.26390383,30611.0,30610.0,0.06682969]
[1688330661019,0.26390383,30611.0,30610.0,0.0486]
[1688330662827,0.28213352,30611.0,30610.0,0.0486]
[1688330663331,0.28275328,30611.0,30610.0,0.0486]
[1688330663731,0.30098297,30611.0,30610.0,0.0486]
[1688330664131,0.28275328,30611.0,30610.0,0.0486]
[1688330664432,0.28275328,30611.0,30610.0,0.06682969]
[1688330664634,0.28275328,30611.0,30610.0,0.0486]
[1688330666035,0.26390383,30611.0,30610.0,0.0486]
[1688330666238,0.26390383,30611.0,30610.0,0.06682969]
[1688330666537,0.26390383,30611.0,30610.0,0.0486]
[1688330666837,0.26390383,30611.0,30610.0,0.06682969]
[1688330668535,0.26390383,30611.0,30610.0,0.0486]
[1688330670740,0.26390383,30611.0,30610.0,0.06682969]
[1688330671334,0.26390383,30611.0,30610.0,0.0486]
[1688330672439,0.28213352,30611.0,30610.0,0.0486]
[1688330672643,0.30173252,30611.0,30610.0,0.2954]
[1688330672830,0.30173252,30611.0,30610.0,0.029]
[1688330673033,0.32058197,30611.0,30610.0,0.029]
[1688330673638,0.40505858,30611.0,30610.0,0.029]
[1688330674547,0.36797944,30611.0,30610.0,0.04722969]
[1688330674951,0.28350283,30611.0,30610.0,0.04722969]
[1688330675145,0.28350283,30611.0,30610.0,0.0486]
[1688330675749,0.30173252,30611.0,30610.0,0.0486]
[1688330676342,0.28350283,30611.0,30610.0,0.0486]
[1688330676842,0.36797868,30611.0,30610.0,0.0486]
[1688330677243,0.38682813,30611.0,30610.0,0.0486]
[1688330678444,0.36722913,30611.0,30610.0,0.0486]
[1688330678641,0.26390383,30611.0,30610.0,0.0486]
[1688330679147,0.26390383,30611.0,30610.0,0.06682969]
[1688330680242,0.26390383,30611.0,30610.0,0.42762969]
[1688330682955,0.26390383,30611.0,30610.0,0.06682969]
[1688330683456,0.26390383,30611.0,30610.0,0.42762969]
[1688330685957,0.26390383,30611.0,30610.0,0.06682969]
[1688330686259,0.25942459,30611.0,30610.0,0.42762969]
[1688330686565,0.26416511,30611.0,30610.0,0.42762969]
[1688330690251,0.26174052,30611.0,30610.0,0.42762969]
[1688330692557,0.26174052,30611.0,30610.0,0.06682969]
[1688330692758,0.26174052,30611.0,30610.0,0.42762969]
[1688330694257,0.26174052,30611.0,30610.0,0.06682969]
[1688330694557,0.26174052,30611.0,30610.0,0.42762969]